bitfinex-derivatives/quotes_ETHF0:USTF0_20241104
["timestamp","ask_amount","ask_price","bid_price","bid_amount"]
[1730738727252,2.06509168,2421.2,2421.1,0.41317]
[1730738727463,5.07259509,2421.2,2421.0,0.41319]
[1730738727759,5.48575509,2421.2,2420.9,0.4132]
[1730738727961,3.00750341,2421.0,2420.9,0.4132]
[1730738728157,3.00750341,2421.0,2420.9,3.621]
[1730738728353,3.00750341,2421.0,2420.9,0.4132]
[1730738728561,3.00750341,2421.0,2420.8,3.62103]
[1730738728748,3.00750341,2421.0,2420.9,0.41321]
[1730738730458,3.00750341,2421.0,2420.8,0.41322]
[1730738730770,3.00750341,2420.8,2420.7,3.62104]
[1730738730950,3.42073341,2420.8,2420.7,3.2078]
[1730738731659,3.42073341,2420.8,2420.1,1.0817]
[1730738731660,0.4133,2420.4,2420.1,1.0817]
[1730738731959,2.83891743,2420.2,2420.0,3.2078]
[1730738732154,2.42558743,2420.2,2420.0,3.62115]
[1730738732359,43.22558743,2420.1,2420.0,3.2078]
[1730738732565,43.63893743,2420.1,2420.0,3.2078]
[1730738732757,43.22558743,2420.1,2420.0,3.2078]
[1730738733153,43.63893743,2420.1,2420.0,3.2078]
[1730738733755,43.22558743,2420.1,2419.3,1.3597]
[1730738733958,2.42558743,2420.0,2419.9,0.41337]
[1730738734258,40.8,2420.1,2419.5,0.41345]
[1730738734259,2.42558743,2419.6,2419.5,0.41345]
[1730738734462,0.97820117,2419.6,2419.5,0.41345]
[1730738734862,0.97820117,2419.6,2419.4,3.2078]
[1730738735165,47.9759482,2420.1,2419.4,3.2078]
[1730738735166,0.97820117,2419.5,2419.4,3.2078]
[1730738735867,0.41344,2419.6,2419.4,3.2078]
[1730738736262,1.03343,2420.0,2419.4,3.2078]
[1730738736263,0.41345,2419.5,2419.4,3.2078]
[1730738736668,4.54625,2419.5,2419.4,3.2078]
[1730738737462,45.04119,2420.1,2419.5,0.41344]
[1730738737463,0.4134,2419.8,2419.5,0.41344]
[1730738737769,0.41339,2419.9,2419.4,3.2078]
[1730738737962,0.41339,2419.9,2419.6,0.41342]
[1730738738161,0.41339,2419.9,2419.4,3.2078]
[1730738738162,44.7681482,2420.1,2419.3,1.0337]
[1730738738467,0.41338,2419.9,2419.7,0.4134]
[1730738739563,0.41338,2419.9,2419.8,0.4134]
[1730738739768,44.7681482,2420.1,2419.5,3.2078]
[1730738740073,45.1815082,2420.1,2419.9,0.41337]
[1730738740267,45.1814982,2420.1,2419.6,1.44698]
[1730738740469,45.1814982,2420.1,2420.0,0.41336]
[1730738740772,0.41336,2420.0,2419.9,0.41337]
[1730738740972,44.7681482,2420.1,2419.6,1.18]
[1730738741368,45.1814982,2420.1,2419.9,0.41337]
[1730738741976,40.8,2420.1,2420.0,0.41336]
[1730738742270,40.8,2420.1,2419.6,1.18]
[1730738742271,44.7681482,2420.1,2419.6,1.18]
[1730738742467,0.41339,2419.9,2419.6,1.18]
[1730738742781,0.41338,2419.9,2419.5,3.2078]
[1730738743077,0.41337,2420.0,2419.8,0.41339]
[1730738743470,40.8,2420.1,2420.0,0.41336]
[1730738744477,40.8,2420.1,2420.0,7.75316]
[1730738744770,0.41326,2420.6,2420.4,0.41329]
[1730738745164,40.8,2420.5,2420.4,0.41329]
[1730738745776,1.0778,2420.9,2420.8,0.41323]
[1730738746169,2.06509168,2421.2,2421.1,0.41317]
[1730738746474,2.06509168,2421.2,2420.7,1.0331]
[1730738746665,2.06509168,2421.2,2420.9,0.4132]
[1730738746666,0.41318,2421.1,2420.9,0.4132]
[1730738746868,3.9681482,2421.0,2420.7,3.2078]
[1730738747175,0.41323,2420.8,2420.7,3.2078]
[1730738747567,4.54443,2420.8,2420.7,3.2078]
[1730738748081,4.1312,2420.8,2420.4,3.2078]
[1730738748385,0.41327,2420.6,2420.4,3.62109]
[1730738748672,2.17944,2420.9,2419.8,4.82704688]
[1730738748673,0.41332,2420.3,2419.8,4.82704688]
[1730738748865,3.9681482,2420.7,2420.1,0.41333]
[1730738748866,0.41331,2420.4,2420.1,0.41333]
[1730738749072,8.2090782,2420.7,2419.8,3.2078]
[1730738749273,3.9681482,2420.4,2419.8,3.2078]
[1730738749571,0.41337,2420.0,2419.8,3.62119]
[1730738750274,0.41336,2420.1,2419.9,0.41338]
[1730738750463,0.41336,2420.1,2419.8,3.2078]
[1730738750669,0.41336,2420.1,2419.9,0.41338]
[1730738751071,0.41334,2420.2,2420.0,0.41336]
[1730738751270,0.41336,2420.1,2419.9,0.41337]
[1730738751474,1.1498,2420.3,2419.9,0.41337]
[1730738751667,0.41336,2420.1,2419.9,0.41337]
[1730738751869,1.1498,2420.3,2420.0,0.41335]
[1730738751870,0.41334,2420.2,2420.0,0.41335]
[1730738752273,40.8,2420.1,2420.0,0.41335]
[1730738753070,40.8,2420.1,2420.0,4.54535]
[1730738753466,40.8,2420.1,2420.0,7.75315]
[1730738754272,40.8,2420.1,2420.0,4.54535]
[1730738754475,3.69459553,2422.4,2420.0,4.54535]
[1730738754476,0.41327,2420.6,2420.1,1.44671]
[1730738754684,1.1521,2420.8,2420.5,0.41328]
[1730738754876,41.21326,2420.7,2420.5,0.41328]
[1730738755077,41.21326,2420.7,2420.3,3.2078]
[1730738755377,41.21326,2420.7,2420.5,0.41327]
[1730738755378,0.41326,2420.6,2420.5,0.41327]
[1730738755776,40.8,2420.7,2420.3,3.2078]
[1730738755978,41.21326,2420.7,2420.5,0.41327]
[1730738756377,40.8,2420.7,2420.6,0.41326]
[1730738756681,40.8,2420.7,2420.5,0.41327]
[1730738757069,40.8,2420.7,2420.4,0.41328]
[1730738757272,0.41329,2420.5,2420.4,0.41329]
[1730738757479,0.41327,2420.6,2420.4,0.41329]
[1730738757979,1.03324,2420.4,2419.6,1.0883]
[1730738758182,0.41341,2419.7,2419.6,1.0883]
[1730738758481,3.2078,2420.0,2419.6,0.41342]
[1730738758677,3.2078,2420.0,2419.5,0.41345]
[1730738758880,0.41342,2419.7,2419.5,0.41345]
[1730738759381,0.41342,2419.7,2419.5,0.41344]
[1730738760085,0.41344,2419.6,2419.4,0.41346]
[1730738760483,40.8,2419.5,2419.4,0.41346]
[1730738760984,40.8,2419.5,2419.1,0.41351]
[1730738760985,0.41348,2419.3,2419.1,0.41351]
[1730738761183,0.41347,2419.4,2419.0,0.41352]
[1730738761383,0.41349,2419.3,2419.1,0.41351]
[1730738761887,0.41348,2419.4,2419.1,0.4135]
[1730738762180,40.8,2419.5,2419.3,0.41347]
[1730738762377,40.8,2419.5,2419.1,3.2078]
[1730738762580,40.8,2419.5,2419.4,0.41347]
[1730738763175,3.9681482,2419.9,2419.5,0.41344]
[1730738763372,0.41342,2419.7,2419.5,0.41344]
[1730738763584,3.9681482,2419.9,2419.5,0.41344]
[1730738763879,41.2134,2419.8,2419.6,0.41342]
[1730738764080,41.2134,2419.8,2419.4,3.2078]
[1730738764284,40.8,2419.8,2419.7,0.41341]
[1730738764478,3.9681482,2420.4,2419.5,4.1328]
[1730738764675,3.9681482,2420.4,2419.8,3.2078]
[1730738764878,0.4133,2420.4,2419.9,1.03346]
[1730738765072,0.4133,2420.4,2419.8,3.2078]
[1730738765073,44.7681482,2420.4,2419.8,3.2078]
[1730738765276,0.41337,2420.0,2419.8,3.62119]
[1730738765574,0.41338,2419.9,2419.8,3.2078]
[1730738765984,0.41338,2419.9,2419.7,0.41341]
[1730738766184,0.41339,2419.9,2419.7,0.41341]
[1730738767093,5.0014782,2420.2,2419.5,4.3546]
[1730738767094,3.9681482,2420.2,2419.5,4.3546]
[1730738767283,0.41333,2420.2,2420.0,0.41335]
[1730738767584,0.41332,2420.3,2420.1,0.41333]
[1730738767884,40.8,2420.4,2419.7,1.59130499]
[1730738767885,40.8,2420.4,2419.7,1.03353]
[1730738768080,0.41338,2419.9,2419.7,0.4134]
[1730738768486,0.41339,2419.9,2419.7,0.41341]
[1730738768782,3.2078,2420.3,2419.5,3.2078]
[1730738769084,1.1577,2419.8,2419.7,0.41341]
[1730738769288,0.41338,2419.9,2419.8,0.4134]
[1730738769490,1.1237,2420.1,2419.5,3.2078]
[1730738769782,0.4134,2419.8,2419.5,3.2078]
[1730738769994,0.4134,2419.8,2419.6,0.41343]
[1730738770492,1.1237,2420.1,2419.8,0.41339]
[1730738770881,0.4134,2419.9,2419.7,0.41341]
[1730738771078,1.03341,2420.0,2419.5,3.62124]
[1730738771290,0.41343,2419.6,2419.5,3.62124]
[1730738771489,5.0016082,2419.9,2419.5,3.2078]
[1730738771682,5.0016082,2419.9,2419.5,3.62124]
[1730738771885,5.0016082,2419.9,2419.5,3.2078]
[1730738771886,0.41343,2419.6,2419.5,3.2078]
[1730738772084,0.41353,2419.0,2418.9,1.61924688]
[1730738772294,0.41353,2419.0,2418.6,5.36591807]
[1730738772295,0.41358,2418.7,2418.6,3.6214]
[1730738772483,0.41358,2418.8,2418.6,3.2078]
[1730738772679,0.41356,2418.9,2418.6,3.2078]
[1730738772882,0.41357,2418.8,2418.7,0.41358]
[1730738773091,3.9681482,2419.0,2418.6,3.2078]
[1730738773285,3.9681482,2419.2,2418.6,3.2078]
[1730738773592,40.8,2419.1,2418.6,3.2078]
[1730738774090,0.41356,2418.9,2418.8,0.41356]
[1730738774289,0.41354,2419.0,2418.9,0.41354]
[1730738774492,40.8,2419.1,2419.0,0.41353]
[1730738775492,0.41347,2419.4,2419.0,5.16743]
[1730738775695,0.41347,2419.4,2419.3,0.41348]
[1730738776195,42.43225,2419.5,2419.4,0.41347]
[1730738776388,40.8,2419.5,2419.4,0.41347]
[1730738776694,4.3815782,2419.7,2419.1,1.0338]
[1730738776887,0.41343,2419.6,2419.5,0.41344]
[1730738777194,3.9681482,2419.7,2419.6,0.41343]
[1730738777195,4.3815682,2419.7,2419.6,0.41343]
[1730738777491,0.4134,2419.8,2419.0,4.82704688]
[1730738777692,40.8,2419.9,2419.3,4.24151]
[1730738777894,40.8,2419.9,2419.5,3.2078]
[1730738778196,40.8,2419.9,2419.8,0.4134]
[1730738778692,0.41344,2419.6,2419.4,0.41345]
[1730738778886,45.96626,2419.9,2419.4,0.41346]
[1730738778887,0.41345,2419.5,2419.4,0.41346]
[1730738779093,5.0017082,2419.7,2419.2,0.41349]
[1730738779297,0.41348,2419.3,2419.2,0.41349]
[1730738779693,0.41348,2419.4,2419.0,3.2078]
[1730738779889,0.41346,2419.5,2419.3,0.41348]
[1730738780091,0.41343,2419.7,2419.5,0.41344]
[1730738780396,0.41344,2419.6,2419.3,3.2078]
[1730738780596,0.41344,2419.6,2419.4,0.41347]
[1730738780787,41.83347,2419.9,2419.3,3.2078]
[1730738781092,0.41344,2419.6,2419.5,0.41344]
[1730738781296,40.8,2419.9,2419.3,3.2078]
[1730738781495,0.41341,2419.7,2419.6,3.62122]
[1730738781791,4.3815582,2419.7,2419.6,3.2078]
[1730738782296,3.9681482,2419.7,2419.4,0.41346]
[1730738782491,3.9681482,2419.7,2419.1,3.2078]
[1730738782700,0.4135,2419.2,2419.1,3.2078]
[1730738782997,0.4135,2419.2,2419.1,0.41352]
[1730738783198,3.2078,2419.3,2418.7,2.17227]
[1730738783398,0.41352,2419.1,2419.0,0.41351]
[1730738783599,5.2059482,2419.4,2418.7,2.17227]
[1730738783901,5.2059482,2419.4,2419.0,0.41352]
[1730738783902,0.41352,2419.1,2419.0,0.41352]
[1730738784289,0.41352,2419.1,2418.7,5.38007]
[1730738784290,5.2059482,2419.4,2418.8,3.2078]
[1730738784600,7.1759482,2419.2,2418.4,5.86113688]
[1730738784791,0.41354,2419.0,2418.8,0.41355]
[1730738785196,5.2059482,2419.4,2418.5,1.1571]
[1730738785397,0.41356,2418.9,2418.7,0.41358]
[1730738785605,0.41354,2419.0,2418.8,0.41356]
[1730738785898,0.41355,2419.0,2418.5,2.19114]
[1730738786100,0.41353,2419.1,2418.9,0.41355]
[1730738786397,1.03371,2419.3,2418.7,0.41357]
[1730738786599,0.41355,2419.0,2418.8,0.41357]
[1730738787110,3.2078,2419.2,2418.6,3.2078]
[1730738787295,6.2396282,2419.4,2418.6,3.2078]
[1730738787492,6.2396282,2419.4,2418.7,0.41357]
[1730738787493,0.41355,2418.9,2418.7,0.41357]
[1730738788198,0.4136,2418.6,2418.5,1.1571]
[1730738788397,1.03386,2419.0,2418.5,1.1571]
[1730738788603,1.03386,2419.0,2418.1,3.19232807]
[1730738788604,3.9681482,2418.6,2418.1,1.61924688]
[1730738788803,0.41367,2418.2,2418.0,0.4137]
[1730738789006,41.9963,2418.5,2417.9,4.3493]
[1730738789197,40.8,2418.5,2417.9,4.3493]
[1730738789393,3.9681482,2418.9,2418.0,4.24207]
[1730738789602,0.41359,2418.7,2418.5,0.41361]
[1730738789911,40.8,2418.6,2418.5,0.41362]
[1730738790202,4.81765,2419.0,2418.8,0.41356]
[1730738790407,4.81765,2419.0,2418.5,1.1415]
[1730738790408,0.41357,2418.8,2418.6,0.4136]
[1730738790611,46.23758491,2419.0,2418.5,3.4693]
[1730738790804,0.41355,2418.9,2418.6,0.41359]
[1730738791000,46.23758491,2419.0,2418.5,3.4693]
[1730738791504,0.41358,2418.8,2418.5,3.4693]
[1730738791706,0.41358,2418.8,2418.6,0.4136]
[1730738791903,0.41357,2418.8,2418.6,0.4136]
[1730738792805,0.41358,2418.7,2418.5,3.88291]
[1730738793005,0.41358,2418.7,2418.4,3.2078]
[1730738793006,0.41362,2418.5,2418.4,3.2078]
[1730738793201,1.03398,2418.7,2418.4,3.2078]
[1730738793408,0.41362,2418.5,2418.4,3.2078]
[1730738793910,1.03393,2418.8,2418.4,3.2078]
[1730738794104,0.41362,2418.5,2418.4,3.2078]
[1730738794509,4.54882,2418.5,2418.4,3.2078]
[1730738794908,7.343,2418.5,2418.0,1.2353]
[1730738795209,0.41368,2418.2,2418.1,0.41369]
[1730738795404,0.41368,2418.2,2418.0,1.64899]
[1730738795605,0.41369,2418.1,2418.0,1.64899]
[1730738795800,5.2097482,2418.4,2417.9,1.1966]
[1730738796016,5.2097482,2418.4,2417.5,1.2424]
[1730738796017,0.41377,2417.6,2417.5,1.2424]
[1730738796315,7.1759482,2417.8,2417.4,3.2078]
[1730738796608,1.03428,2418.0,2417.4,3.2078]
[1730738796609,0.41378,2417.6,2417.5,0.41378]
[1730738796808,40.8,2417.7,2417.6,0.41377]
[1730738797012,3.9681482,2418.0,2417.5,1.1921]
[1730738797215,3.9681482,2418.0,2417.5,2.22657]
[1730738797510,3.9681482,2418.0,2417.7,0.41374]
[1730738797511,41.21373,2417.9,2417.7,0.41374]
[1730738797714,40.8,2417.9,2417.8,0.41374]
[1730738798106,0.41361,2418.6,2417.8,4.136]
[1730738798315,3.9681482,2418.8,2418.0,1.03427]
[1730738798518,0.41362,2418.5,2418.3,0.41365]
[1730738798810,0.41359,2418.7,2418.5,0.41361]
[1730738799019,3.9681482,2418.8,2418.2,2.3857]
[1730738799314,5.0020982,2418.8,2418.3,0.41365]
[1730738799502,0.41363,2418.5,2418.3,0.41365]
[1730738799709,3.9681482,2418.6,2418.2,1.1936]
[1730738799908,0.41365,2418.4,2418.2,1.60726]
[1730738800107,0.41365,2418.3,2418.2,1.60726]
[1730738800405,3.9681482,2418.6,2418.2,1.1936]
[1730738800610,0.41362,2418.5,2418.2,1.1936]
[1730738800810,0.41362,2418.5,2418.4,0.41364]
[1730738801013,1.2034,2418.7,2418.2,1.1936]
[1730738801209,0.41364,2418.4,2418.2,1.1936]
[1730738801410,0.41365,2418.3,2418.2,1.1936]
[1730738801623,0.41365,2418.3,2418.2,1.60727]
[1730738802012,3.9681482,2418.5,2418.2,1.1936]
[1730738802209,0.41365,2418.3,2418.2,1.1936]
[1730738802808,5.0022082,2418.5,2417.7,1.61924688]
[1730738802809,3.9681482,2418.5,2417.7,1.61924688]
[1730738803016,5.0022182,2418.5,2417.8,1.45167991]
[1730738803324,0.41369,2418.1,2417.9,0.41371]
[1730738803617,0.41366,2418.3,2418.1,0.41368]
[1730738803819,5.0022182,2418.5,2418.1,0.41368]
[1730738804021,0.41368,2418.2,2418.0,0.41369]
[1730738804214,0.41368,2418.2,2417.8,3.2078]
[1730738804417,0.41366,2418.3,2418.1,0.41368]
[1730738804611,3.62141,2418.6,2418.4,0.41363]
[1730738804810,0.41361,2418.6,2418.4,0.41362]
[1730738805016,0.41361,2418.6,2418.1,4.24202]
[1730738805017,0.41363,2418.5,2418.3,0.41365]
[1730738805218,0.41364,2418.4,2418.3,0.41365]
[1730738805412,0.41361,2418.6,2418.4,0.41363]
[1730738805619,0.41362,2418.5,2418.3,0.41364]
[1730738806018,6.1950782,2418.8,2418.2,3.2078]
[1730738806019,0.41361,2418.6,2418.2,3.2078]
[1730738806324,0.41361,2418.6,2418.2,4.3758]
[1730738806522,0.41361,2418.6,2418.5,0.41361]
[1730738806713,0.41362,2418.6,2418.4,0.41362]
[1730738806917,0.41362,2418.6,2418.5,0.41362]
[1730738807219,0.41363,2418.5,2418.4,0.41363]
[1730738807417,5.1611482,2418.8,2418.3,3.2078]
[1730738807618,0.4136,2418.6,2418.5,0.41361]
[1730738808214,0.4136,2418.7,2418.6,0.4136]
[1730738808530,3.2078,2418.9,2418.3,4.24194]
[1730738808716,3.9681482,2418.8,2418.3,3.2078]
[1730738809024,0.41359,2418.7,2418.6,0.41359]
[1730738809220,3.9681482,2418.8,2418.3,4.24193]
[1730738809421,0.4136,2418.6,2418.5,0.41361]
[1730738809621,0.4136,2418.6,2418.5,0.41362]
[1730738809922,0.41363,2418.5,2418.4,0.41364]
[1730738810228,0.41361,2418.6,2418.4,0.41363]
[1730738810416,0.41363,2418.5,2418.3,3.62145]
[1730738810723,0.41361,2418.6,2418.4,0.41362]
[1730738811113,0.41362,2418.5,2418.4,0.41362]
[1730738811320,0.41364,2418.4,2418.3,3.62145]
[1730738811628,0.41363,2418.5,2418.3,3.62145]
[1730738811819,5.0020882,2418.8,2418.3,3.62145]
[1730738811820,0.41361,2418.6,2418.3,3.2078]
[1730738812017,0.41361,2418.6,2418.4,0.41364]
[1730738812423,1.03416,2418.3,2417.7,2.49695651]
[1730738812623,0.41368,2418.2,2418.0,0.4137]
[1730738812823,0.41368,2418.2,2417.8,1.1793]
[1730738813126,0.41368,2418.2,2418.0,0.4137]
[1730738813127,40.8,2418.1,2418.0,0.4137]
[1730738813625,40.8,2418.1,2417.8,2.4134]
[1730738813827,0.41371,2418.0,2417.9,0.41372]
[1730738814026,41.21369,2418.1,2417.9,0.41371]
[1730738814326,40.8,2418.1,2417.9,0.41371]
[1730738814525,0.41371,2418.0,2417.8,2.82712]
[1730738814931,0.41371,2418.0,2417.8,2.82713]
[1730738815131,40.8,2418.1,2417.9,0.41372]
[1730738815332,41.2137,2418.1,2417.9,0.41372]
[1730738815636,40.8,2418.1,2418.0,0.4137]
[1730738815930,0.41371,2418.0,2417.8,2.82713]
[1730738816133,40.8,2418.1,2417.9,0.41372]
[1730738816433,40.8,2418.1,2417.7,1.2137]
[1730738816629,40.8,2418.1,2417.7,4.4215]
[1730738816836,40.8,2418.1,2418.0,0.4137]
[1730738817027,41.21369,2418.1,2417.9,0.41371]
[1730738817331,40.8,2418.1,2418.0,0.4137]
[1730738817534,0.41366,2418.3,2418.1,0.41367]
[1730738817733,1.2617,2418.5,2418.0,3.2078]
[1730738817921,44.7681482,2418.7,2418.0,4.24204]
[1730738818121,44.7681482,2418.7,2418.5,0.41361]
[1730738818122,45.1817382,2418.7,2418.5,0.41361]
[1730738818333,40.8,2418.7,2418.6,0.4136]
[1730738818632,1.2776,2418.9,2418.5,3.2078]
[1730738818831,1.2776,2418.9,2418.8,0.41357]
[1730738819034,42.0776,2418.9,2418.8,0.41357]
[1730738819333,49.4198,2418.9,2418.1,1.61924688]
[1730738819555,0.41374,2417.9,2417.7,1.89905]
[1730738819728,0.41371,2418.0,2417.9,0.41371]
[1730738820033,1.2655,2418.2,2417.7,1.2783]
[1730738820432,1.2655,2418.2,2417.7,4.4861]
[1730738820726,7.1759482,2418.3,2417.7,4.4861]
[1730738821035,0.4138,2417.5,2417.3,0.41382]
[1730738821339,0.4138,2417.5,2417.1,0.41386]
[1730738821531,0.41379,2417.5,2417.3,0.41382]
[1730738821831,1.03434,2417.9,2417.3,3.62162]
[1730738821832,40.8,2417.4,2417.3,3.62162]
[1730738822043,5.2336482,2418.2,2417.8,0.41374]
[1730738822240,5.2336482,2418.2,2417.5,3.2078]
[1730738822534,40.8,2418.1,2418.0,0.4137]
[1730738822733,7.5895882,2418.4,2418.2,0.41367]
[1730738822939,7.1759482,2418.4,2418.0,3.2078]
[1730738823228,0.41368,2418.2,2418.0,0.4137]
[1730738823928,3.9681482,2418.4,2417.8,3.2078]
[1730738824236,0.41367,2418.2,2418.0,0.41369]
[1730738824428,0.41366,2418.3,2418.1,0.41368]
[1730738824837,3.2078,2418.6,2417.8,5.86139688]
[1730738825028,5.2425482,2418.7,2417.9,1.45503337]
[1730738825223,5.2425482,2418.7,2417.9,2.65355688]
[1730738825428,5.2425482,2418.7,2418.1,3.2078]
[1730738825629,0.41361,2418.6,2418.0,3.98694688]
[1730738825829,5.2425482,2418.7,2418.0,3.98694688]
[1730738825830,0.41363,2418.5,2418.3,0.41365]
[1730738826025,3.9681482,2418.7,2418.1,1.03422]
[1730738826230,3.9681482,2418.7,2418.3,3.2078]
[1730738826531,0.41361,2418.6,2418.4,0.41363]
[1730738827024,40.8,2418.5,2418.4,0.41363]
[1730738827226,40.8,2418.5,2418.2,1.1959]
[1730738827427,3.9681482,2418.4,2418.0,7.19474688]
[1730738827626,0.41364,2418.4,2418.1,3.4894047]
[1730738827827,3.2078,2421.4,2419.2,3.2078]
[1730738828034,3.2078,2421.4,2418.3,3.9681482]
[1730738828035,0.83267379,2420.9,2420.6,0.41325]
[1730738828234,0.83267379,2420.9,2420.8,7.1759482]
[1730738828430,0.83267379,2420.9,2420.5,4.82743215]
[1730738828737,40.8,2420.8,2420.5,3.2078]
[1730738828935,46.55473,2420.8,2420.5,3.2078]
[1730738829237,42.0103,2420.8,2420.3,3.9681482]
[1730738829539,42.0103,2420.8,2420.2,10.57390392]
[1730738829830,42.0103,2420.8,2420.7,3.2078]
[1730738829831,40.8,2420.8,2420.7,3.2078]
[1730738830023,40.8,2420.8,2420.5,0.41327]
[1730738830228,40.8,2420.8,2420.2,7.67299392]
[1730738830229,44.9312,2420.8,2420.2,7.67299392]
[1730738830537,40.8,2420.8,2420.3,3.2078]
[1730738830737,40.8,2420.8,2420.3,3.6211]
[1730738831130,40.8,2420.8,2420.3,3.2078]
[1730738831329,40.8,2420.8,2420.4,0.41329]
[1730738831530,40.8,2420.8,2420.3,3.2078]
[1730738831726,44.0078,2420.8,2420.3,0.4133]
[1730738832034,4.1312,2420.7,2419.8,4.28418435]
[1730738832334,1.2797,2420.6,2419.8,3.2078]
[1730738832537,1.2797,2420.6,2420.1,0.41334]
[1730738832538,1.69297,2420.6,2420.1,0.41334]
[1730738832733,1.199,2420.5,2420.1,0.41334]
[1730738833034,1.61229,2420.5,2420.0,0.41335]
[1730738833224,1.199,2420.5,2420.1,0.41333]
[1730738833430,1.199,2420.5,2420.1,3.62113]
[1730738833736,1.199,2420.5,2420.4,0.41329]
[1730738833939,1.199,2420.5,2420.1,3.62113]
[1730738834234,4.46519392,2420.2,2419.5,0.207]
[1730738834441,0.41338,2420.0,2419.5,0.41344]
[1730738834740,40.8,2419.6,2419.0,1.07638435]
[1730738834936,40.8,2419.6,2419.5,0.41345]
[1730738836335,40.8,2419.6,2419.5,5.82455]
[1730738836835,1.2606,2419.9,2419.5,5.82455]
[1730738837028,1.2606,2419.9,2419.8,3.6212]
[1730738837433,42.0606,2419.9,2419.8,3.6212]
[1730738837632,40.8,2419.9,2419.8,3.6212]
[1730738837828,40.8,2419.9,2419.8,7.754]
[1730738838129,40.8,2419.9,2419.8,4.5462]
[1730738838433,1.63965,2420.7,2420.4,0.41329]
[1730738838634,1.2264,2420.7,2420.3,3.2078]
[1730738838937,1.2264,2420.7,2420.6,0.41326]
[1730738839132,1.2264,2420.7,2420.1,1.03334]
[1730738839133,1.2264,2420.7,2420.4,3.2078]
[1730738839331,1.2264,2420.7,2420.6,0.41326]
[1730738839732,5.3576,2420.7,2420.6,0.41326]
[1730738839937,1.2264,2420.7,2420.6,0.41326]
[1730738840335,3.2078,2420.8,2420.4,3.2078]
[1730738840531,0.83267379,2420.9,2420.8,0.41323]
[1730738841745,2.06509168,2421.2,2420.8,4.54363]
[1730738842040,2.06509168,2421.2,2421.1,3.62097]
[1730738842750,42.86509168,2421.2,2421.1,7.75137]
[1730738843239,42.86509168,2421.2,2421.1,4.54357]
[1730738843445,42.86509168,2421.2,2421.1,7.75137]
[1730738843737,2.06509168,2421.2,2421.1,4.54357]
[1730738843936,2.06509168,2421.2,2421.1,7.75137]
[1730738844137,2.06509168,2421.2,2420.6,1.07638435]
[1730738844333,2.06509168,2421.2,2420.7,0.41324]
[1730738844334,0.4132,2421.0,2420.7,0.41324]
[1730738844538,40.8,2421.1,2420.8,0.41321]
[1730738844739,40.8,2421.1,2420.5,2.4652]
[1730738844939,40.8,2421.1,2421.0,0.41319]
[1730738846749,40.8,2421.1,2421.0,3.62099]
[1730738847436,40.8,2421.1,2421.0,0.41319]
[1730738847646,40.8,2421.1,2420.5,3.4984]
[1730738847647,44.9304,2421.1,2420.2,3.2078]
[1730738847849,0.41329,2420.5,2420.2,0.41332]
[1730738848039,4.66559,2421.0,2419.8,1.03347]
[1730738848241,0.41326,2420.6,2420.3,0.41331]
[1730738848437,3.09802168,2421.2,2420.5,7.67299392]
[1730738848438,2.06509168,2421.2,2420.5,7.67299392]
[1730738848643,2.06509168,2421.2,2421.1,0.41317]
[1730738849440,2.06509168,2421.2,2421.0,3.2078]
[1730738849640,2.06509168,2421.2,2421.1,0.41317]
[1730738850251,2.06509168,2421.2,2421.1,4.54357]
[1730738850555,0.61871907,2421.2,2421.1,0.41317]
[1730738850744,4.74911907,2421.2,2421.0,3.2078]
[1730738851048,0.41322,2420.9,2420.4,3.2078]
[1730738851347,0.4132,2421.0,2420.7,3.62104]
[1730738851541,2.4295,2421.1,2420.7,3.2078]
[1730738851741,2.4295,2421.1,2420.2,1.0333]
[1730738851742,41.21322,2420.9,2420.6,0.41325]
[1730738851946,41.21322,2420.9,2420.2,1.0333]
[1730738851947,40.8,2420.9,2420.8,3.2078]
[1730738852147,40.8,2420.9,2420.8,0.41323]
[1730738852551,40.8,2420.9,2420.7,0.41324]
[1730738853152,0.41322,2420.9,2420.6,3.62105]
[1730738853346,1.2281,2421.1,2420.6,3.2078]
[1730738853553,1.2296,2421.0,2420.6,3.2078]
[1730738854054,0.61871907,2421.2,2420.6,3.2078]
[1730738854352,0.61871907,2421.2,2420.7,0.41324]
[1730738854353,40.8,2420.8,2420.7,0.41324]
[1730738855656,40.8,2420.8,2420.7,4.54444]
[1730738855958,1.88231907,2421.2,2421.1,0.41317]
[1730738856160,1.88231907,2421.2,2421.1,3.62097]
[1730738856459,42.68231907,2421.2,2421.1,3.62097]
[1730738856846,0.61871907,2421.2,2421.1,3.62097]
[1730738857054,0.61871907,2421.2,2421.1,7.75137]
[1730738858151,40.8,2421.6,2421.5,0.41311]
[1730738858463,40.8,2421.6,2421.5,3.62091]
[1730738858753,0.069,2421.9,2421.8,0.41306]
[1730738858961,1.2542,2422.3,2422.1,0.413]
[1730738858962,0.069,2422.2,2422.1,0.413]
[1730738859256,0.069,2422.2,2422.1,3.6208]
[1730738861756,0.069,2422.2,2422.1,12.21479392]
[1730738862257,0.069,2422.4,2422.1,11.80179392]
[1730738862458,0.069,2422.4,2422.3,0.41297]
[1730738862959,0.069,2422.4,2422.3,4.54097]
[1730738863250,0.069,2422.4,2422.3,0.41297]
[1730738864764,0.069,2422.4,2422.3,9.00616392]
[1730738865055,0.2979864,2422.5,2422.4,0.41295]
[1730738865362,0.2979864,2422.5,2422.4,8.81481716]
[1730738865753,1.03148079,2423.7,2422.5,1.03234]
[1730738865950,1.03148079,2423.7,2423.2,3.2078]